Cogmind - Beta 10.2 @@@ ROGUE MODE // 2021.12.17 @ 16:33:24 Player: SURFACESEEKER Result: Destroyed by D-53 Grenadier with Mini Grenade Launcher Performance ------------- Evolutions (1) 500 Regions Visited (3) 600 Robots Destroyed (29) 145 Value Destroyed (759) 759 Prototype IDs (0) 0 Alien Tech Used (0) 0 Bonus (11) 11 TOTAL SCORE: 2015 Bonus ------- High Alert Combat Kills 11 Cogmind --------- Core Integrity 0/400 Matter 80/300 Energy 40/100 System Corruption 1% Temperature Cool (0) Movement Walking (160) Ox1 Location -9/Mines Parts ------- > --- POWER (1) -------- (None) > --- PROPULSION (2) --- Titanium Leg > --- UTILITY (4) ------ Large Storage Unit Structural Scanner Terrain Scanner Terrain Scan Processor > --- WEAPON (2) ------- Light Assault Rifle Light Assault Rifle > --- INVENTORY (10) --- Light Ion Engine Large Storage Unit Large Storage Unit Compact Matter Pod (0) Reflective Plating Improved Light Cannon Peak State ------------ > --- POWER ------------ Light Nuclear Core > --- PROPULSION ------- Titanium Leg Titanium Leg > --- UTILITY ---------- Large Storage Unit Structural Scanner Terrain Scanner Terrain Scan Processor > --- WEAPON ----------- Light Assault Rifle Heavy Assault Rifle > --- INVENTORY -------- Light Ion Engine Titanium Leg Titanium Leg Large Storage Unit Large Storage Unit Compact Matter Pod Reflective Plating Heavy Assault Rifle Improved Light Cannon Grenade Launcher [Rating: 19] Favorites ----------- Power Light Nuclear Core Engine Light Ion Engine Power Core Light Nuclear Core Propulsion Light Treads Treads Light Treads Leg Titanium Leg Utility Structural Scanner Device Structural Scanner Storage Large Storage Unit Processor Terrain Scan Processor Weapon Small Laser Energy Gun Small Laser Ballistic Gun Heavy Assault Rifle Ballistic Cannon Improved Light Cannon Launcher Grenade Launcher Build | -11 -10 -9 -9 ------- Run | Scr Mat Mat Min Slots Evolved 2 | . . 2 . Power . | . . . . Propulsion . | . . . . Utility 2 | . . 2 . Weapon . | . . . . Parts Attached 31 | 4 10 9 8 Power 3 | 1 1 . 1 Engine 2 | 1 . . 1 Core 1 | . 1 . . Reactor . | . . . . Propulsion 6 | 2 . 2 2 Treads 2 | 2 . . . Leg 4 | . . 2 2 Wheel . | . . . . Hover . | . . . . Flight . | . . . . Utility 5 | . 3 2 . Device 2 | . 1 1 . Storage 2 | . 2 . . Processor 1 | . . 1 . Hackware . | . . . . Protection . | . . . . Artifact . | . . . . Weapon 17 | 1 6 5 5 Energy Gun 4 | 1 3 . . Energy Cannon . | . . . . Ballistic Gun 8 | . 1 4 3 Ballistic Cannon 1 | . . . 1 Launcher 4 | . 2 1 1 Special Weapon . | . . . . Impact Weapon . | . . . . Slashing Weapon . | . . . . Piercing Weapon . | . . . . Special Melee Weapon . | . . . . Unidentified Prototypes . | . . . . Parts Lost 8 | . 1 . 7 Power 2 | . . . 2 Propulsion 1 | . . . 1 Utility . | . . . . Weapon 5 | . 1 . 4 Highest Loss Streak 5 | . 1 . 5 Average Slot Usage (%) 96 | . 95 99 96 Engine 3 | . 4 . 7 Core 9 | . 9 11 1 Treads 17 | . 28 . . Leg 8 | . . 21 22 Device 14 | . 10 22 22 Storage 12 | . 14 11 11 Processor 4 | . . 11 11 Energy Gun 14 | . 23 1 . Ballistic Gun 7 | . 1 15 20 Launcher 2 | . 2 4 . Naked Turns . | . . . . Heaviest Build 29 | 4 26 29 27 Greatest Support 40 | 40 40 40 34 Greatest Overweight (x) 8 | . . 8 . Average Overweight (x) . | . . . . Largest Inventory Capacity 10 | 4 10 10 10 Average Capacity 8 | 4 8 10 10 Most Carried 10 | 3 8 10 10 Average Carried 6 | 1 4 9 8 Final Capacity 10 | 4 10 10 10 Final Carried 10 | 3 8 10 6 Class Distribution -------------------- 63% | Mutant 28% | Scavenger-Skirmisher 8% | Scavenger-Mutant Dominant Class ---------------- Mutant | -10/Materials Scavenger-Skirmisher | -9/Materials Scavenger-Skirmisher | -9/Mines Resources | -11 -10 -9 -9 ----------- Run | Scr Mat Mat Min Matter Collected 566 | 140 208 149 69 Remotely . | . . . . Salvage Created 736 | . 328 357 51 Parts 55 | . 29 21 5 Haulers Intercepted . | . . . . Recyclers Shooed 1 | . . 1 . Parts Field Recycled . | . . . . Retrieved Matter . | . . . . Parts Self-Destructed . | . . . . Prevented . | . . . . Kills | -11 -10 -9 -9 ------- Run | Scr Mat Mat Min Combat Hostiles Destroyed 21 | . 9 9 3 Guns 15 | . 9 3 3 AOE 6 | . . 6 . Classes Destroyed 7 | . 5 2 . Worker 1 | . 1 . . Builder 2 | . 2 . . Recycler 1 | . . 1 . Watcher 4 | . 3 1 . Swarmer 9 | . 6 . 3 Grunt 8 | . 3 5 . Sentry 4 | . . 4 . Best Kill Streak 7 | . 4 7 3 Combat Bots Only 6 | . 3 6 3 Max Kills in Single Turn 3 | . 1 3 1 Gunslinging . | . . . . Exploded 3 | . . 3 . Melee . | . . . . Uniques/NPCs Destroyed . | . . . . Combat | -11 -10 -9 -9 -------- Run | Scr Mat Mat Min Damage Taken 1825 | . 284 424 1117 Core 489 | . 70 102 317 Absorbed by Shields . | . . . . Core Remaining (%) 86 | 100 72 . . Volleys Fired 87 | . 44 25 18 Largest 2 | . 2 2 2 Hottest 90 | . 90 43 46 Shots Fired 143 | . 77 37 29 Gun 120 | . 70 25 25 Cannon 3 | . . . 3 Launcher 20 | . 7 12 1 Special . | . . . . Kinetic 57 | . 4 25 28 Thermal 47 | . 47 . . Explosive 20 | . 7 12 1 Electromagnetic 19 | . 19 . . Robot Hit Streak 19 | . 9 19 3 Robot Miss Streak 3 | . 3 1 2 Penetration Max . | . . . . Secondary Targets 3 | . 2 . 1 Max Gunslinging Chain 1 | . 1 . 1 Shots Hit Robots 78 | . 38 25 15 Core Hits 51 | 1 19 26 5 Critical Hits . | . . . . Critical Kills . | . . . . Critical Parts Destroyed . | . . . . Melee Attacks . | . . . . Impact . | . . . . Slashing . | . . . . Piercing . | . . . . Sneak Attacks . | . . . . Combat Hostiles . | . . . . Follow-up Attacks . | . . . . Damage Inflicted 1545 | 4 528 797 216 Guns 856 | . 493 231 132 Cannons 69 | . . . 69 Explosions 611 | . 33 563 15 Melee . | . . . . Ramming 9 | 4 2 3 . Kinetic 432 | . . 231 201 Thermal 398 | . 398 . . Explosive 578 | . . 563 15 Electromagnetic 128 | . 128 . . Impact . | . . . . Slashing . | . . . . Piercing . | . . . . Highest Corruption 1 | . . 1 1 Average Corruption 1 | . . 1 1 Corruption Purged . | . . . . Effects 5 | . . 3 2 Message Errors 1 | . . 1 . Data Loss (minor) 2 | . . 1 1 Targeting Errors 2 | . . 1 1 Overload Shots . | . . . . Overflow Damage 48 | . 9 39 . Projectiles . | . . . . Explosions 48 | . 9 39 . Melee . | . . . . Knockbacks . | . . . . Impact . | . . . . Kinetic . | . . . . Secondary . | . . . . Self-Inflicted Damage 91 | . 34 57 . Shots 2 | . 1 1 . Rammed 3 | 1 1 1 . Targets Rammed 3 | 1 1 1 . Kicked . | . . . . Crushed . | . . . . Highest Temperature 180 | . 180 14 . Average Temperature 47 | . 52 7 . Received Heat Transfer 218 | . 78 120 20 Siege Activations . | . . . . Robots Corrupted . | . . . . Combat Hostiles . | . . . . Parts Fried . | . . . . Impact Corruptions . | . . . . Robots Melted . | . . . . Combat Hostiles . | . . . . Parts Melted 3 | . 3 . . Heat Transferred 934 | . 934 . . Parts Sabotaged . | . . . . Parts Stolen . | . . . . Parts Stripped . | . . . . Power Chain Reactions 1 | . 1 . . Missiles Intercepted . | . . . . Alert | -11 -10 -9 -9 ------- Run | Scr Mat Mat Min Peak Influence 419 | . 297 419 161 Initial 96 | . . 87 96 Average 141 | . 100 256 145 Maximum Alert Level 2 | . 1 2 . Low Security (%) 68 | 100 86 9 100 Level 1 31 | . 13 89 . Level 2 . | . . . . Level 3 . | . . . . Level 4 . | . . . . Level 5 . | . . . . High Security . | . . . . Max Security . | . . . . Squads Dispatched 4 | . 1 3 . Investigation 1 | . . 1 . Extermination . | . . . . Reinforcement 3 | . 1 2 . Assault . | . . . . Garrison . | . . . . Intercept . | . . . . Construction Impeded . | . . . . Haulers Reinforced . | . . . . Stealth | -11 -10 -9 -9 --------- Run | Scr Mat Mat Min Distress Signals 3 | . 1 2 . Communications Jammed . | . . . . Distress Signals . | . . . . Times Spotted 43 | . 15 14 14 Peak Tracking Total 10 | . 3 5 10 Tactical Retreats 1 | . 1 . . Traps | -11 -10 -9 -9 ------- Run | Scr Mat Mat Min Traps Triggered . | . . . . Indirectly . | . . . . Trap Hack Attempts . | . . . . Triggered . | . . . . Disarmed . | . . . . Reprogrammed . | . . . . Reused . | . . . . Traps Extracted . | . . . . Installed . | . . . . Triggered . | . . . . Machines | -11 -10 -9 -9 ---------- Run | Scr Mat Mat Min Machines Disabled 11 | . 6 4 1 Max in Single Turn 2 | . 2 2 1 Machines Sabotaged . | . . . . Garrisons Compromised . | . . . . Overloaded Fab Kills . | . . . . Fab Network Shutdowns . | . . . . Hacking | -11 -10 -9 -9 --------- Run | Scr Mat Mat Min Machines Accessed 5 | . 2 3 . Terminals 4 | . 2 2 . Fabricators . | . . . . Repair Stations . | . . . . Recycling Units . | . . . . Scanalyzers 1 | . . 1 . Garrison Access . | . . . . Total Hacks 12 | . 3 9 . Successful 5 | . 2 3 . Failed 7 | . 1 6 . Catastrophic 1 | . 1 . . Database Lockouts . | . . . . Manual 10 | . 3 7 . Terminals 10 | . 3 7 . Fabricators . | . . . . Repair Stations . | . . . . Recycling Units . | . . . . Scanalyzers 2 | . . 2 . Garrison Access . | . . . . Terminal Hacks 1 | . . 1 . Maintenance Status 1 | . . 1 . Fabricator Hacks . | . . . . Repair Station Hacks . | . . . . Recycling Unit Hacks . | . . . . Scanalyzer . | . . . . Garrison Access Hacks . | . . . . Unauthorized Hacks 4 | . 2 2 . Terminals 4 | . 2 2 . Track 2 | . 1 1 . Botnet 2 | . 1 1 . Fabricators . | . . . . Repair Stations . | . . . . Recycling Units . | . . . . Scanalyzers . | . . . . Garrison Access . | . . . . Data Cores Recovered . | . . . . Used . | . . . . Hacking Detections 5 | . 2 3 . Full Trace Events 1 | . . 1 . Feedback Events . | . . . . Feedback Blocked . | . . . . Robot Schematics Acquired . | . . . . Robots Built . | . . . . Matter . | . . . . Time . | . . . . Total Robot Build Rating . | . . . . Part Schematics Acquired . | . . . . Parts Built . | . . . . Matter . | . . . . Time . | . . . . Total Part Build Rating . | . . . . Parts Repaired . | . . . . Time . | . . . . Parts Recycled . | . . . . Recycled Matter . | . . . . Retrieved Matter . | . . . . Retrieved Components . | . . . . Parts Scanalyzed . | . . . . Part Schematics Acquired . | . . . . Parts Damaged . | . . . . Bothacking | -11 -10 -9 -9 ------------ Run | Scr Mat Mat Min Used RIF Installer . | . . . . Robots Hacked . | . . . . Non-combat . | . . . . Combat . | . . . . Robot Hacks Applied . | . . . . Relay Couplers Released . | . . . . Robots Rewired . | . . . . Allies Hacked . | . . . . Hacks Repelled . | . . . . Allies | -11 -10 -9 -9 -------- Run | Scr Mat Mat Min Total Allies 3 | . . . 3 Largest Group 3 | . . . 3 Highest-Rated Group 40 | . . . 40 Highest-Rated Ally 16 | . . . 16 Total Orders . | . . . . Ally Attacks 3 | . . . 3 Total Damage 27 | . . . 27 Kills . | . . . . Allies Corrupted . | . . . . Allies Melted . | . . . . Intel | -11 -10 -9 -9 ------- Run | Scr Mat Mat Min Robot Analysis Total . | . . . . Derelict Logs Recovered 1 | . . . 1 Drone Launches . | . . . . Drone Recoveries . | . . . . Exploration | -11 -10 -9 -9 ------------- Run | Scr Mat Mat Min Turns Passed 1835 | 99 1057 488 191 Spaces Moved 978 | 60 525 292 101 Core 9 | 8 . 1 . Treads 581 | 52 525 4 . Legs 388 | . . 287 101 Wheels . | . . . . Hover . | . . . . Flight . | . . . . Fastest Speed 50 | 50 160 130 130 Average Speed 147 | 145 160 131 130 Slowest Speed 450 | 160 160 450 130 Overloaded Moves . | . . . . Propulsion Burnouts . | . . . . Robots Hopped . | . . . . Cave-ins Triggered . | . . . . Exploration Rate (%) 31 | 4 64 30 26 Regions Visited 3 Branch Regions 1 Pre-discovered Areas . | . . . . Known Exits Taken . | . . . . Unknown Exits Taken 3 | 1 1 1 . Scrap Searched . | . . . . Spaces Dug 12 | . 12 . . Terrain Destroyed 163 | . 25 133 5 Melee . | . . . . Projectile . | . . . . AOE 163 | . 25 133 5 Terrain Rammed . | . . . . Walls Destroyed . | . . . . Machines Disabled . | . . . . Actions | -11 -10 -9 -9 --------- Run | Scr Mat Mat Min Total 1230 | 71 664 363 132 Wait 96 | . 71 25 . Move 976 | 60 524 291 101 Hop . | . . . . Pick Up 28 | 7 11 7 3 Fast Attach 2 | . . 2 . Attach 17 | 4 4 4 5 Detach . | . . . . Swap 12 | . 6 3 3 Drop 10 | . 3 5 2 Fire 87 | . 44 25 18 Melee . | . . . . Ram . | . . . . Kick 1 | . . 1 . Crush 1 | . 1 . . Escape Stasis . | . . . . Rewire . | . . . . Trap . | . . . . Miscellaneous . | . . . . Route ------- -11/Scrapyard -10/Materials (discovered 3 exits: *Mat / [*Min x2]) -9/Materials -9/Mines History --------- Turn | Location | Event 65 | -11/Scrapyard | Discovered new exit (range 16) 100 | -11/Scrapyard | Entered Materials 324 | -10/Materials | Build established: Mutant 576 | -10/Materials | Discovered new exit (range 16) 938 | -10/Materials | Discovered new exit (range 9) 1063 | -10/Materials | Discovered new exit (range 16) 1157 | -10/Materials | Entered another Materials area 1157 | -9/Materials | Evolved 2 slots: Utility x2 1513 | -9/Materials | Discovered new exit (range 13) 1645 | -9/Materials | Entered Mines 1784 | -9/Mines | Assembled infested the area 1789 | -9/Mines | Assisted by a Guerilla fighting off Assembled 1803 | -9/Mines | Assisted by bots powering up and referring to "LRC-V3" 1809 | -9/Mines | Learned Materials trap positions 1819 | -9/Mines | Core integrity fell below 50% 1835 | -9/Mines | Core integrity fell below 20% 1836 | -9/Mines | Destroyed by D-53 Grenadier with Mini Grenade Launcher Last Messages --------------- 01814_ R-06 Scavenger destroyed. 01815_ Mercenary 2a destroyed. 01818_ Trooper 2b destroyed. 01818_ as-70262 destroyed. 01818_ as-02666 destroyed. 01818_ as-39079 destroyed. 01818_ as-36422 destroyed. 01818_ Trooper 2a destroyed. 01820_ Lgt. Ion Engine destroyed. 01820_ as-94615 destroyed. 01821_ The unstable cave ceiling collapses. 01822_ Hvy. Assault Rifle destroyed. 01822_ as-23068 destroyed. 01824_ as-54072 destroyed. 01826_ Grenade Launcher destroyed. 01830_ The unstable cave ceiling collapses. 01830_ Hvy. Assault Rifle destroyed. 01830_ as-06037 destroyed. 01832_ Titanium Leg destroyed. 01836_ The unstable cave ceiling collapses. Map ----- +----------------------------------------------------+ | ?????????????????????????????????????????????????? | | ?????????????????????????????????????????????????? | | ?????????????????????????????????????????????????? | | ?????????????????????????????????????????????????? | | ?????????????????????????????????????????????????? | | ?????????????????????????????????????????????????? | | ?????????????????????????????????????????????????? | | ?????????????????????????????????????????????????? | | ?????????????????????????????????????????????????? | | ?????????????????????????????????????????????????? | | ?????????????????????????????????????????????????? | | ???????????????????????? ???? ??????????????????? | | ???????????????????? ???????? ???#?????????????? | | ????????????????????????????????#????????????????? | | ???????????????? ??? ?#??#????????????????????? | | ??????????????#? ????###??#?#?##??? ?????????????? | | ????????## ????#?#??##?#????#??#?????????????????? | | ???????## ?#?#?#?#??#? ????# ?? ?? ???????????? | | ?????? ???#????#?#? ?? ? ??????????????????? | | ?????? ?###??#??????? ? ????? ?????????????? | | ????? #??##??#?##########?????? ??????????? | | ?????# ###????## ####? ?????????????? | | ??????# ###?## ##??? ???#????????? | | ??????# ##?# ##???# ???????????? | | ??????# ### #?##?????????????? | | ??????# # @ ####?????????????? | | ???????# ###?#? ??????????? | | ##???#?## ##??#? ??????????? | | #?##?#??## d #???? ???????????? | | #?#????#### d #?????????? | | ####?#???### ### #?????????? | | ??###?#??#?# ######## # ########?????????? | | #??####?#??# ##??#?#?#### #????????????????? | | ??#??#?###?# #?###??####? ???????????????? | | ?#####?#???# ###?#?##?###? ?#????????????? | | ??####?#??### #??#????????# u #?????????????? | | ####??#?##?## ##?####??????? ##????????????? | | #??######## ##?##??#?#??? ##?????????????? | | ###### ##????#??? ? ?#??????????????? | | ## #?#??###?# ??????????????????? | | ### ## #### ##???????????????????????????? | | ### ## ##?#### #????#?#?????????????????????? | | ### ## #?##??# ##????????????????????????????? | | ### #?#???# ###??##?#?????????????????????? | | #?#### #?#?# ##????????????????????????????? | | #?#?## #?# ##??#???????#?????????????????? | | ##??## ##????????????????????????????? | | ###### #######?#?????????????????????????? | | ####?#?# ##???##????????????????????????????? | | ##??### ####??#???????????????????????????????? | +----------------------------------------------------+ Best States ------------- Heat Dissipation 28 Energy Generation 14 Energy Capacity 160 Matter Stores 300 Matter Capacity 300 Sight Range 16 Terrain Scan Range 14 Terrain Scan Density 85 Evasion (%) 40 Recoil Reduction 2 Item Schematics ----------------- None Robot Schematics ------------------ None Fabricated ------------ Nothing Alien Tech Used ----------------- None Achievements -------------- None Challenges ------------ None Game ------ Seed ScatterDeepAccelerator Manual? 0 Play Time 00:18:39 Cumulative 94.3 hours Start 2021.12.16 @ 20:38:40 End 2021.12.17 @ 16:33:24 Sessions 2 Manual Loads 0 Difficulty Rogue Special Mode None Game No. 79 Rogue 79 Adventurer 0 Explorer 0 Win Type - Total 0 Types 0/0/0/0/0/0/0/0/0 Lore% 29 Gallery% 48 Achievement% 29 Wizard Run 0 Options --------- ASCII 0 Keyboard 0 Movement Arrows Keybinds 0 Fullscreen 1 Font 14/Terminus Map View 72x54 Tactical HUD 1 Map Filters NONE Filters NONE Steam 1 RUN: 6efda672-e6d8-45e6-a247-bb2989d0c728